Cogmind - Beta 9 @@@ ROGUE MODE // 2019.10.23 @ 17:07:04 // Halloween2019/Abominations Player: Nikolayag Result: Destroyed by Minor Abomination with Heavy Particle Cannon Performance ------------- Evolutions (2) 1000 Regions Visited (3) 600 Robots Destroyed (7) 35 Value Destroyed (258) 258 Prototype IDs (0) 0 Alien Tech Used (0) 0 Bonus (0) 0 TOTAL SCORE: 1893 Bonus ------- None Cogmind --------- Core Integrity 0/550 Matter 300/300 Energy 99/100 System Corruption 0% Temperature Cool (69) Location -8/Materials Parts ------- Power (1) Propulsion (2) Utility (6) Weapon (2) Inventory (4) Medium Laser Medium Laser Flak Cannon Peak State ------------ Power Light Ion Engine Propulsion Light Treads Hover Unit Utility Weight Redist. System Light Armor Plating Hacking Suite Weapon Medium Laser Katana Inventory Light Ion Engine Medium Laser Medium Laser Flak Cannon [Rating: 13] Favorites ----------- Power Light Ion Engine Engine Light Ion Engine Propulsion Light Treads Treads Light Treads Wheel Compact Wheel Hover Unit Hover Unit Utility Hacking Suite Device Weight Redist. System Storage Small Storage Unit Hackware Hacking Suite Protection Light Armor Plating Weapon Medium Laser Energy Gun Medium Laser Ballistic Gun Assault Rifle Slashing Weapon Katana Build | -11 -10 -9 -8 ------- Run | Scr Mat Mat Mat Slots Evolved 4 | . . 2 2 Power . | . . . . Propulsion . | . . . . Utility 4 | . . 2 2 Weapon . | . . . . Parts Attached 18 | 6 2 9 1 Power 3 | 1 . 1 1 Engine 3 | 1 . 1 1 Core . | . . . . Reactor . | . . . . Propulsion 4 | 2 . 2 . Treads 1 | . . 1 . Leg . | . . . . Wheel 2 | 2 . . . Hover 1 | . . 1 . Flight . | . . . . Utility 4 | 1 . 3 . Device 1 | . . 1 . Storage 1 | 1 . . . Processor . | . . . . Hackware 1 | . . 1 . Protection 1 | . . 1 . Artifact . | . . . . Weapon 7 | 2 2 3 . Energy Gun 5 | 2 1 2 . Energy Cannon . | . . . . Ballistic Gun 1 | . 1 . . Ballistic Cannon . | . . . . Launcher . | . . . . Special Weapon . | . . . . Impact Weapon . | . . . . Slashing Weapon 1 | . . 1 . Piercing Weapon . | . . . . Special Melee Weapon . | . . . . Unidentified Prototypes . | . . . . Parts Lost 11 | . 2 . 9 Power 2 | . . . 2 Propulsion 2 | . . . 2 Utility 3 | . . . 3 Weapon 4 | . 2 . 2 Highest Loss Streak 9 | . 1 . 9 Average Slot Usage (%) 62 | . 80 57 58 Engine 9 | . 13 10 6 Treads 7 | . . 10 7 Wheel 5 | . 26 . . Hover 4 | . . 5 7 Device 4 | . . 4 8 Storage 2 | . 13 . . Hackware 5 | . . 6 8 Protection 2 | . . 1 5 Energy Gun 16 | . 23 18 5 Slashing Weapon 2 | . . . 8 Naked Turns 49 | . 10 31 8 Heaviest Build 13 | 12 13 10 10 Greatest Support 32 | 32 32 20 12 Greatest Overweight (x) 1 | . . 1 . Average Overweight (x) . | . . . . Largest Inventory Capacity 6 | 6 6 4 4 Average Capacity 4 | 5 5 4 4 Most Carried 6 | 6 6 4 4 Average Carried 4 | 3 5 3 3 Final Capacity 4 | . . . 4 Final Carried 3 | . . . 3 Class Distribution -------------------- 79% | Mutant 20% | Scavenger-Mutant Dominant Class ---------------- Mutant | -10/Materials Mutant | -9/Materials Scavenger-Mutant | -8/Materials Resources | -11 -10 -9 -8 ----------- Run | Scr Mat Mat Mat Matter Collected 381 | 155 27 130 69 Remotely . | . . . . Salvage Created 213 | 56 51 74 32 Parts 17 | 2 8 6 1 Haulers Intercepted . | . . . . Recyclers Shooed . | . . . . Parts Field Recycled . | . . . . Retrieved Matter . | . . . . Parts Self-Destructed . | . . . . Prevented . | . . . . Kills | -11 -10 -9 -8 ------- Run | Scr Mat Mat Mat Combat Hostiles Destroyed 2 | . 1 1 . Guns 2 | . 1 1 . Classes Destroyed 4 | 1 1 2 . Recycler 1 | 1 . . . Operator 2 | . . 1 1 Abomination 2 | . 1 1 . Anomaly 2 | . . 1 1 Best Kill Streak 1 | 1 1 1 1 Combat Bots Only 1 | . 1 1 . Max Kills in Single Turn 1 | 1 1 1 1 Gunslinging . | . . . . Exploded . | . . . . Melee . | . . . . Uniques/NPCs Destroyed . | . . . . Combat | -11 -10 -9 -8 -------- Run | Scr Mat Mat Mat Damage Taken 1558 | . 362 123 1073 Core 659 | . 68 22 569 Absorbed by Shields . | . . . . Core Remaining (%) 88 | 100 72 94 . Volleys Fired 29 | 4 14 11 . Largest 2 | 2 2 2 . Hottest 100 | 90 90 100 . Shots Fired 56 | 8 26 22 . Gun 56 | 8 26 22 . Cannon . | . . . . Launcher . | . . . . Special . | . . . . Kinetic 5 | . 5 . . Thermal 51 | 8 21 22 . Explosive . | . . . . Electromagnetic . | . . . . Robot Hit Streak 7 | 1 5 7 . Robot Miss Streak 3 | 1 2 3 . Penetration Max . | . . . . Secondary Targets . | . . . . Shots Hit Robots 43 | 3 18 17 5 Core Hits 17 | 2 6 7 2 Critical Hits . | . . . . Critical Kills . | . . . . Critical Parts Destroyed . | . . . . Melee Attacks 12 | . . 5 7 Impact . | . . . . Slashing 12 | . . 5 7 Piercing . | . . . . Sneak Attacks 6 | . . 1 5 Combat Hostiles 1 | . . . 1 Follow-up Attacks . | . . . . Damage Inflicted 1189 | 47 280 344 518 Guns 575 | 47 278 250 . Cannons . | . . . . Explosions . | . . . . Melee 606 | . . 94 512 Ramming 8 | . 2 . 6 Kinetic 31 | . 31 . . Thermal 544 | 47 247 250 . Explosive . | . . . . Electromagnetic . | . . . . Impact . | . . . . Slashing 606 | . . 94 512 Piercing . | . . . . Highest Corruption 2 | . 1 2 . Average Corruption 1 | . 1 1 . Corruption Purged . | . . . . Effects 2 | . . 2 . Message Errors 1 | . . 1 . Data Loss (minor) 1 | . . 1 . Overload Shots . | . . . . Overflow Damage 187 | . . . 187 Projectiles . | . . . . Explosions . | . . . . Melee 187 | . . . 187 Knockbacks . | . . . . Impact . | . . . . Kinetic . | . . . . Secondary . | . . . . Self-Inflicted Damage 3 | . 1 . 2 Shots . | . . . . Rammed 4 | . 1 . 3 Targets Rammed 4 | . 1 . 3 Kicked . | . . . . Crushed . | . . . . Highest Temperature 604 | 120 383 604 278 Average Temperature 195 | 63 226 211 126 Received Heat Transfer 357 | . 135 6 216 Effects 13 | . 2 11 . Shutdowns 5 | . 1 4 . Energy Bleed 2 | . . 2 . Interference 2 | . . 2 . Matter Decay 1 | . . 1 . Short Circuit 1 | . 1 . . Damage (major) 2 | . . 2 . Siege Activations . | . . . . Robots Corrupted . | . . . . Combat Hostiles . | . . . . Parts Fried . | . . . . Impact Corruptions . | . . . . Robots Melted . | . . . . Combat Hostiles . | . . . . Parts Melted 1 | 1 . . . Heat Transferred 552 | 124 135 293 . Parts Sabotaged . | . . . . Parts Stolen . | . . . . Parts Stripped . | . . . . Power Chain Reactions . | . . . . Missiles Intercepted . | . . . . Alert | -11 -10 -9 -8 ------- Run | Scr Mat Mat Mat Peak Influence 29 | 5 9 5 29 Average Influence 5 | 1 4 2 14 Maximum Alert Level . | . . . . Low Security (%) 100 | . . . . Level 1 . | . . . . Level 2 . | . . . . Level 3 . | . . . . Level 4 . | . . . . Level 5 . | . . . . High Security . | . . . . Max Security . | . . . . Squads Dispatched 16 | . 1 6 9 Investigation 7 | . 1 2 4 Extermination . | . . . . Reinforcement 4 | . . 1 3 Assault 3 | . . 3 . Garrison 2 | . . . 2 Intercept . | . . . . Construction Impeded . | . . . . Haulers Reinforced . | . . . . Stealth | -11 -10 -9 -8 --------- Run | Scr Mat Mat Mat Distress Signals 15 | . 1 8 6 Communications Jammed . | . . . . Distress Signals . | . . . . Times Spotted 45 | . 12 6 27 Peak Tracking Total 17 | . 9 2 17 Tactical Retreats 4 | . 1 . 3 Traps | -11 -10 -9 -8 ------- Run | Scr Mat Mat Mat Traps Triggered 1 | . . . 1 Indirectly . | . . . . Trap Hack Attempts . | . . . . Triggered . | . . . . Disarmed . | . . . . Reprogrammed . | . . . . Reused . | . . . . Traps Extracted . | . . . . Installed . | . . . . Triggered . | . . . . Machines | -11 -10 -9 -8 ---------- Run | Scr Mat Mat Mat Machines Disabled . | . . . . Max in Single Turn . | . . . . Machines Sabotaged . | . . . . Garrisons Compromised . | . . . . Overloaded Fab Kills . | . . . . Fab Network Shutdowns . | . . . . Hacking | -11 -10 -9 -8 --------- Run | Scr Mat Mat Mat Machines Accessed 4 | . 1 1 2 Terminals 4 | . 1 1 2 Fabricators . | . . . . Repair Stations . | . . . . Recycling Units . | . . . . Scanalyzers . | . . . . Garrison Access . | . . . . Total Hacks 14 | . 2 6 6 Successful 11 | . 2 4 5 Failed 3 | . . 2 1 Catastrophic . | . . . . Database Lockouts . | . . . . Manual 14 | . 2 6 6 Terminals 14 | . 2 6 6 Fabricators . | . . . . Repair Stations . | . . . . Recycling Units . | . . . . Scanalyzers . | . . . . Garrison Access . | . . . . Terminal Hacks 3 | . 1 1 1 Zone Layout 3 | . 1 1 1 Fabricator Hacks . | . . . . Repair Station Hacks . | . . . . Recycling Unit Hacks . | . . . . Scanalyzer . | . . . . Garrison Access Hacks . | . . . . Unauthorized Hacks 18 | . 2 8 8 Terminals 8 | . 1 3 4 Track 3 | . . 1 2 Botnet 2 | . . 1 1 Operators 3 | . 1 1 1 Fabricators . | . . . . Repair Stations . | . . . . Recycling Units . | . . . . Scanalyzers . | . . . . Garrison Access . | . . . . Data Cores Recovered . | . . . . Used . | . . . . Hacking Detections 3 | . 1 . 2 Full Trace Events 1 | . . . 1 Feedback Events . | . . . . Feedback Blocked . | . . . . Robot Schematics Acquired . | . . . . Robots Built . | . . . . Matter . | . . . . Time . | . . . . Total Robot Build Rating . | . . . . Part Schematics Acquired . | . . . . Parts Built . | . . . . Matter . | . . . . Time . | . . . . Total Part Build Rating . | . . . . Parts Repaired . | . . . . Time . | . . . . Parts Recycled . | . . . . Recycled Matter . | . . . . Retrieved Matter . | . . . . Retrieved Components . | . . . . Parts Scanalyzed . | . . . . Part Schematics Acquired . | . . . . Parts Damaged . | . . . . Bothacking | -11 -10 -9 -8 ------------ Run | Scr Mat Mat Mat Used RIF Installer . | . . . . Robots Hacked . | . . . . Non-combat . | . . . . Combat . | . . . . Robot Hacks Applied . | . . . . Relay Couplers Released . | . . . . Robots Rewired . | . . . . Allies Hacked . | . . . . Hacks Repelled . | . . . . Allies | -11 -10 -9 -8 -------- Run | Scr Mat Mat Mat Total Allies . | . . . . Largest Group . | . . . . Highest-Rated Group . | . . . . Highest-Rated Ally . | . . . . Total Orders . | . . . . Ally Attacks . | . . . . Total Damage . | . . . . Kills . | . . . . Allies Corrupted . | . . . . Allies Melted . | . . . . Intel | -11 -10 -9 -8 ------- Run | Scr Mat Mat Mat Robot Analysis Total . | . . . . Derelict Logs Recovered . | . . . . Drone Launches . | . . . . Drone Recoveries . | . . . . Exploration | -11 -10 -9 -8 ------------- Run | Scr Mat Mat Mat Turns Passed 939 | 88 170 459 222 Spaces Moved 799 | 63 133 369 234 Core 130 | 5 17 68 40 Treads 74 | . . 74 . Legs . | . . . . Wheels 174 | 58 116 . . Hover 421 | . . 227 194 Flight . | . . . . Fastest Speed 50 | 50 50 50 50 Average Speed 89 | 96 93 96 74 Slowest Speed 160 | 100 100 160 80 Overloaded Moves . | . . . . Propulsion Burnouts . | . . . . Robots Hopped . | . . . . Cave-ins Triggered . | . . . . Exploration Rate (%) 26 | 4 38 29 36 Regions Visited 3 Branch Regions . Pre-discovered Areas . | . . . . Known Exits Taken . | . . . . Unknown Exits Taken 3 | 1 1 1 . Scrap Searched . | . . . . Spaces Dug 6 | . . 4 2 Terrain Destroyed 6 | . . 4 2 Melee 6 | . . 4 2 Projectile . | . . . . AOE . | . . . . Actions | -11 -10 -9 -8 --------- Run | Scr Mat Mat Mat Total 923 | 79 151 440 253 Wait 49 | 1 1 39 8 Move 796 | 62 132 368 234 Hop . | . . . . Pick Up 11 | 6 . 5 . Fast Attach 13 | 6 1 6 . Attach 4 | . 1 2 1 Detach 1 | . 1 . . Swap 1 | . . 1 . Drop 3 | . . 3 . Fire 29 | 4 14 11 . Melee 12 | . . 5 7 Ram 4 | . 1 . 3 Kick . | . . . . Crush . | . . . . Escape Stasis . | . . . . Rewire . | . . . . Trap . | . . . . Miscellaneous . | . . . . Route ------- -11/Scrapyard -10/Materials -9/Materials -8/Materials History --------- Turn | Location | Event 8 | -11/Scrapyard | Discovered new exit (range 16) 89 | -11/Scrapyard | Entered Materials 249 | -10/Materials | Released all parts (5) 254 | -10/Materials | Discovered new exit (range 10) 259 | -10/Materials | Entered another Materials area 259 | -9/Materials | Evolved 2 slots: Utility x2 336 | -9/Materials | Build established: Mutant 714 | -9/Materials | Discovered new exit (range 3) 718 | -9/Materials | Entered another Materials area 718 | -8/Materials | Evolved 2 slots: Utility x2 755 | -8/Materials | Garrison activated, responded to threat 912 | -8/Materials | Core integrity fell below 50% 936 | -8/Materials | Core integrity fell below 20% 940 | -8/Materials | Destroyed by Minor Abomination with Heavy Particle Cannon Last Messages --------------- 00920_ Ice Anomaly freezes U-05 Engineer. 00922_ Forced to warp away. 00923_ Frozen by Ice Anomaly. 00925_ Unstable Anomaly suddenly flashes brightly. 00930_ Hacking Suite destroyed. 00930_ Weight Redist. System destroyed. 00931_ Frozen by Ice Anomaly. 00932_ Katana destroyed. 00935_ Unstable Anomaly suddenly flashes brightly. 00937_ Lesser Abomination feeds off Hungry Anomaly, taking Imp. Signal Interpreter. 00937_ Lesser Abomination absorbs Wheel. 00937_ Unstable Anomaly suddenly flashes brightly. 00937_ Hungry Anomaly eats Prototype Energy Gun. 00938_ Minor Abomination absorbs Reflective Plating. 00938_ Hungry Anomaly eats Aluminum Leg. 00939_ Minor Abomination absorbs Reflective Plating. 00939_ Hungry Anomaly eats Com. Wheel. 00940_ Minor Abomination feeds off Hungry Anomaly, taking Imp. Sensor Array. Map ----- +----------------------------------------------------+ | ?????????????????????????????????????????????????? | | ?????????????????????????????????????????????????? | | ########?????????????????????????????????????????? | | #[[ !#???????????*#????????????????????????????? | | # #?##+##### ! #????????????????????????????? | | # #?#%%[[ %% ###??????????????????????????? | | ?# ###!%] !| ""#??????????????????????????? | | ?# [%! % % T"#??????????????????????????? | | ## ### %!]%%""#??????????????????????????? | | %#?# % % ###??????????????????????????? | | ## %%#?# #????????????????????????????? | | ?# %% #?# %#????????????????????????????? | | ##" %##?# [???????????????????????????? | | % " #??# ""T"" % %]?????????????????????????? | | =%%%%#??# """"" [% [?????????????????????????? | | %%%* #??# ############??????????????????????????? | | %%= #??? ??????????????????????????????????????? | | %!" %#??? ??????????????????????????????????????? | | "% #???+????????????########??????????????????? | | %"% #????????????????# ???????????????????? | | %" #????????????????# % % ????????????????????? | | % " %#????????????????# % ?????????????????????? | | """% ##???????????????# #??##+##??????????????? | | """ "#???????????????# #? %% #??????????????? | | " %" #??????????????# %# [ =#??????????????? | | " ""####"+########## @A/% % #??????????????? | | #% %%%% %% %% % %# """"%#??????????????? | | / % %%% %% % #????"????????????????? | | "%#% % % %%%% %n% #?????????????????????? | | "%"##%################%A #?????????????????????? | | "%# " " ????????????# %% %#?????????????????????? | | %%# "%" #????????????#nA #?????????????????????? | | %"" " " ##???????????#% #?????????????????????? | | #"" " #???????????#n %#?????????????????????? | | %% %% ##???????????#% %% #?????????????????????? | | % """ "%##???????????#% % #?????????????????????? | | %"" " "% % = #???????# %[#?????????????????????? | | %# "%"% #???????#% #?????????????????????? | | %## "%" "" #??????? n ?????????????????????? | | %# " " S"" #??????? ?????????????????????? | | %# "%" "" +??????? n ?????????????????????? | | # " " %[ #??????? % %?????????????????????? | | ## "%""######???????????????????????????????????? | | ?##""%""#????????????????????????????????????????? | | ?? " "#????????????????????????????????????????? | | ?? " %/????????????????????????????????????????? | | ?? " ""!???????????????????????????????????????? | | ??#""%"%% ??????????????????????????????????????? | | ???"% " ??????????????????????????????????????? | | ???# ??????????????????????????????????????????? | +----------------------------------------------------+ Best States ------------- Heat Dissipation 31 Energy Generation 10 Energy Capacity 250 Matter Stores 300 Matter Capacity 300 Sight Range 16 Terrain Scan Density 10 Additional Mass Support 6 Armor Coverage 150 Evasion (%) 50 Recoil Reduction 1 Offensive Hacking 10 Item Schematics ----------------- None Robot Schematics ------------------ None Fabricated ------------ Nothing Alien Tech Used ----------------- None Achievements -------------- None Challenges ------------ None Game ------ Seed ChipDeuteriumAccelerator Manual? 0 Play Time 00:11:47 Cumulative 158.9 hours Start 2019.10.23 @ 16:57:52 End 2019.10.23 @ 17:07:04 Sessions 1 Manual Loads 0 Difficulty Rogue Special Mode Halloween2019/Abominations Game No. 168 Rogue 168 Adventurer 0 Explorer 0 Win Type - Total 3 Types 3/0/0/0/0/0/0 Lore% 48 Gallery% 67 Achievement% 42 Wizard Run 0 Options --------- ASCII 0 Keyboard 1 Movement Numpad Keybinds 0 Fullscreen 1 Font 18/SmallcapsGlow Map View 76x50 Tactical HUD 1 Map Filters NONE Filters NONE Steam 1 RUN: ebffd8b3-7b89-4a40-aea0-ebfe0eb12ce1